fUST/lending_fUST_20240526
["ID","MTS","AMOUNT","RATE_DAILY","PERIOD"]
[327961217,1716717047611,-795.47963258,0.00021918,7]
[327961218,1716717047620,-28305.27277179,0.00022,2]
[327961219,1716717047629,-1000.0,0.00022,5]
[327961220,1716717047639,-244.25004299,0.00022,2]
[327961221,1716717047648,-4953.84400443,0.00022,2]
[327961222,1716717047720,-7016.2889086,0.00022,2]
[327961223,1716717047842,-838.34080852,0.00022,2]
[327961224,1716717047851,-261.64373468,0.00022,2]
[327961225,1716717047861,-306.90881709,0.00022,2]
[327961226,1716717047871,-1000.0,0.00022,2]
[327961227,1716717047880,-227.37904174,0.00022043,2]
[327961228,1716717047889,-5068.37210365,0.000223,6]
[327961229,1716717047898,-282.0,0.000223,2]
[327961230,1716717047907,-282.0,0.000223,2]
[327961231,1716717047917,-166.666666,0.00022431,2]
[327961232,1716717047930,-347.62362876,0.000225,2]
[327961233,1716717047939,-166.666666,0.00022944,2]
[327961234,1716717047948,-3323.92515861,0.00023,2]
[327961235,1716717047958,-154.8915759,0.00023,2]
[327961236,1716717047967,-1000.0,0.00023,2]
[327961237,1716717047976,-1000.0,0.00023,7]
[327961238,1716717047985,-311.0,0.00023,2]
[327961239,1716717047995,-593.0,0.000231,2]
[327961240,1716717048006,-311.0,0.00023288,2]
[327961241,1716717048016,-166.666666,0.00023456,2]
[327961242,1716717048025,-283.00747004,0.00023734,2]
[327961243,1716717048035,-2000.0,0.000238,8]
[327961244,1716717048044,-14506.81448524,0.0002382,2]
[327961245,1716717048057,-415.11121662,0.0002382,2]
[327961251,1716717367881,589.92,0.0002871,120]
[327961252,1716717432897,500.0,0.0002871,120]
[327961253,1716717433660,500.0,0.0002871,120]
[327961254,1716717434493,500.0,0.0002871,120]
[327961255,1716717435578,500.0,0.0002871,120]
[327961256,1716717436337,500.0,0.0002871,120]
[327961257,1716717437241,500.0,0.0002871,120]
[327961258,1716717437897,500.0,0.0002871,120]
[327961259,1716717438660,500.0,0.0002871,120]
[327961260,1716717439430,486.68,0.0002871,120]
[327961276,1716718172673,156.6263305,9.999e-05,2]
[327961277,1716718214554,403.88807297,9.999e-05,2]
[327961314,1716718232003,-171.942642,0.00019816,2]
[327961317,1716718232014,-155.96016033,0.0002,2]
[327961319,1716718232023,-279.1103904,0.0002,2]
[327961321,1716718232033,-414.72719987,0.0002,2]
[327961323,1716718232042,-300.0,0.0002,2]
[327961325,1716718232052,-175.72514253,0.00020912,2]
[327961327,1716718232061,-836.12249757,0.00020912,2]
[327961329,1716718232071,-1497.56271984,0.00020912,2]
[327961331,1716718232080,-1586.94240342,0.00020912,2]
[327961332,1716718232089,-528.89075591,0.00020912,2]
[327961334,1716718232099,-720.49251095,0.00020912,2]
[327961336,1716718232108,-155.09109496,0.00020912,2]
[327961338,1716718232118,-195.09320661,0.00020912,2]
[327961340,1716718232128,-282.32070813,0.00020912,2]
[327961342,1716718232138,-552.15455315,0.00020912,2]
[327961344,1716718232148,-156.46222534,0.00020912,2]
[327961346,1716718232158,-330.7477686,0.00020912,2]
[327961348,1716718232167,-1030.14218747,0.00020913,2]
[327961350,1716718232178,-158.64163439,0.00020913,2]
[327961352,1716718232188,-155.02115193,0.00020913,2]
[327961354,1716718232197,-280.0,0.00021,2]
[327961356,1716718232207,-4697.14874934,0.00021,2]
[327961358,1716718232216,-181.11191058,0.00021533,2]
[327961360,1716718232225,-166.666666,0.00021918,2]
[327961362,1716718232235,-154.87008981,0.00022,2]
[327961364,1716718232244,-306.90881709,0.00022,2]
[327961365,1716718232254,-3555.24418545,0.000223,6]
[327961367,1716718232267,-243.06478985,0.000223,6]
[327961369,1716718232276,-66.27014082,0.00022349,2]
[327961394,1716718238004,-188.28270009,0.00022349,2]
[327961395,1716718238014,-166.666666,0.00022431,2]
[327961396,1716718238023,-166.666666,0.00022944,2]
[327961397,1716718238032,-154.86062544,0.00023,2]
[327961398,1716718238042,-166.666666,0.00023456,2]
[327961399,1716718238051,-305.60841075,0.00023581,2]
[327961400,1716718238060,-170.53428134,0.0002373,2]
[327961401,1716718238070,-154.3112681,0.00023792,2]
[327961402,1716718238080,-79.84937831,0.0002382,2]
[327961403,1716718238090,-375.81084751,0.00023829,2]
[327961404,1716718238100,-210.0,0.00023829,2]
[327961405,1716718238109,-500.0,0.00023829,2]
[327961406,1716718238119,-500.0,0.00023829,2]
[327961407,1716718238128,-261.2622359,0.00023829,2]
[327961408,1716718238138,-500.0,0.00023829,2]
[327961409,1716718238147,-500.0,0.00023829,2]
[327961410,1716718238156,-500.0,0.00023829,2]
[327961411,1716718238166,-500.0,0.00023829,2]
[327961412,1716718238175,-500.0,0.00023829,2]
[327961413,1716718238187,-500.0,0.00023829,2]
[327961414,1716718238196,-500.0,0.00023829,2]
[327961415,1716718238206,-500.0,0.00023829,2]
[327961416,1716718238215,-500.0,0.00023829,2]
[327961417,1716718238224,-500.0,0.00023829,2]
[327961418,1716718238234,-500.0,0.00023829,2]
[327961419,1716718238243,-500.0,0.00023829,2]
[327961420,1716718238252,-500.0,0.00023829,2]
[327961421,1716718238261,-500.0,0.00023829,2]
[327961422,1716718238271,-500.0,0.00023829,2]
[327961423,1716718238280,-363.28838368,0.00023829,2]
[327961426,1716718240092,273.37336231,9.9e-05,2]
[327961437,1716718241912,-76.47046377,0.00023829,2]
[327961438,1716718241924,-60.24115255,0.00023829,2]
[327961439,1716718241934,-500.0,0.00023829,2]
[327961440,1716718241943,-500.0,0.00023829,2]
[327961441,1716718241953,-500.0,0.00023829,2]
[327961442,1716718241962,-500.0,0.00023829,2]
[327961443,1716718241971,-500.0,0.00023829,2]
[327961444,1716718241979,-500.0,0.00023829,2]
[327961445,1716718241989,-500.0,0.00023829,2]
[327961446,1716718241998,-500.0,0.00023829,2]
[327961447,1716718242007,-500.0,0.00023829,2]
[327961448,1716718242016,-308.87102605,0.00023829,2]
[327961449,1716718242025,-500.0,0.00023829,2]
[327961450,1716718242034,-500.0,0.00023829,2]
[327961451,1716718242043,-463.0731758,0.00023829,2]
[327961452,1716718242055,-36.9268242,0.00023829,2]
[327961453,1716718242064,-469.11883592,0.00023829,2]
[327961517,1716718243119,-30.88116408,0.00023829,2]
[327961519,1716718243130,-839.06474805,0.0002383,2]
[327961588,1716718243839,-1206.500005,0.0002383,2]
[327961590,1716718243852,-610.0,0.0002383,2]
[327961711,1716718255705,-159.8994937,0.00022,2]
[327961712,1716718255715,-381.97269318,0.00023829,2]
[327961713,1716718255725,-816.87602205,0.0002383,2]
[327961714,1716718255736,-303.384041,0.0002383,2]
[327961715,1716718256224,33.70533572,9.9e-05,2]
[327961716,1716718256252,239.66802659,9.9e-05,2]
[327961717,1716718263785,273.37336231,9.9e-05,2]
[327961718,1716718282212,154.86062544,9.999e-05,2]
[327961719,1716718313344,1511.47871418,9.999e-05,2]
[327961720,1716718315462,285.35051707,9.999e-05,2]
[327961721,1716718317482,179.1289942,9.999e-05,2]
[327961723,1716718688409,3055.0,0.000151,2]
[327961724,1716718693039,-281.83220357,0.00018388,2]
[327961725,1716718693065,-151.0,0.00018389,3]
[327961726,1716718693088,-163.4924561,0.00019323,2]
[327961727,1716718693113,-250.0,0.00019935,2]
[327961728,1716718693137,-181.11191058,0.0002,2]
[327961729,1716718693160,-279.1103904,0.0002,2]
[327961730,1716718693184,-414.72719987,0.0002,2]
[327961744,1716719230184,-150.0,0.000189,2]
[327961745,1716719230206,-951.2452116,0.00019603,2]
[327961746,1716719230226,-181.11191058,0.0002,2]
[327961747,1716719230247,-279.1103904,0.0002,2]
[327961748,1716719230266,-154.86497945,0.0002,2]
[327961758,1716719342626,8366.79891585,0.00020912,7]
[327961763,1716719364568,1850.1274412,0.0002091,7]
[327961765,1716719374043,1969.09155667,0.00020909,7]
[327961766,1716719388225,823.26752797,9.999e-05,2]
[327961767,1716719388259,1181.27385972,9.999e-05,2]
[327961771,1716719408437,1098.17565538,0.00015,2]
[327961772,1716719410835,922.0747966,0.00014,2]
[327961773,1716719414554,1279.26662071,9.999e-05,2]
[327961774,1716719415175,521.87992401,9.999e-05,2]
[327961775,1716719424212,943.66202456,0.00015,2]
[327961776,1716719431105,1895.552382,9.999e-05,2]
[327961827,1716719433669,984.54577833,0.00020905,7]
[327961932,1716719440368,224.72355605,9.999e-05,2]
[327961984,1716719443770,-190.12040614,0.000156,2]
[327961986,1716719443781,-274.77958442,0.000165,2]
[327961987,1716719443792,-258.1926785,0.00019,2]
[327961988,1716719443802,-259.2207898,0.00019859,2]
[327961989,1716719443813,-131.18229403,0.0002,2]
[327961990,1716719443822,-198.66505042,0.0002,2]
[327961991,1716719443865,-7.86715098,0.0002,2]
[327961992,1716719443875,-181.11191058,0.0002,2]
[327961993,1716719443885,-279.1103904,0.0002,2]
[327961994,1716719443895,-414.72719987,0.0002,2]
[327961995,1716719443905,-152.695,0.0002016,2]
[327961997,1716719443915,-42009.85148102,0.00020282,2]
[327961999,1716719443924,-10462.98123862,0.00020283,2]
[327962001,1716719443933,-222.48130443,0.00020284,2]
[327962003,1716719443943,-306.84259384,0.00020701,2]
[327962004,1716719443952,-499.112,0.00020852,2]
[327962006,1716719443962,-155.33293194,0.00020904,2]
[327962008,1716719443971,-431.50458725,0.00020904,2]
[327962009,1716719443980,-155.70818563,0.00020904,2]
[327962010,1716719443989,-516.25402816,0.00020904,2]
[327962011,1716719443999,-1279.26662071,0.00020904,2]
[327962012,1716719444009,-448.05244228,0.00020904,2]
[327962013,1716719444019,-327.25032338,0.00020904,2]
[327962014,1716719444028,-1582.0138323,0.00020904,2]
[327962015,1716719444037,-533.22,0.00020904,3]
[327962016,1716719444047,-270.06099238,0.00020906,2]
[327962017,1716719444056,-2801.75380745,0.00020906,2]
[327962018,1716719444065,-43632.30217357,0.00020906,2]
[327962019,1716719444485,-36367.69782643,0.00020906,2]
[327962020,1716719444496,-1685.54934894,0.00020906,2]
[327962021,1716719444507,-2403.8060941,0.00020906,2]
[327962022,1716719444518,-155.22220759,0.00020906,2]
[327962023,1716719444528,-154.97370123,0.00020907,2]
[327962024,1716719444538,-284.45314285,0.00020907,2]
[327962025,1716719444548,-630.3498141,0.00020907,2]
[327962026,1716719444558,-500.0,0.00020907,2]
[327962027,1716719444567,-500.0,0.00020907,2]
[327962028,1716719444577,-500.0,0.00020907,2]
[327962029,1716719444587,-500.0,0.00020907,2]
[327962030,1716719444596,-500.0,0.00020907,2]
[327962031,1716719444605,-500.0,0.00020907,2]
[327962032,1716719444615,-500.0,0.00020907,2]
[327962033,1716719444624,-442.66130781,0.00020907,2]
[327962034,1716719444633,-500.0,0.00020907,2]
[327962035,1716719444643,-500.0,0.00020907,2]
[327962036,1716719444652,-500.0,0.00020907,2]
[327962037,1716719444661,-6196.9039482,0.0002091,2]
[327962038,1716719444671,-3473.44171324,0.0002091,2]
[327962039,1716719444680,-155.29385504,0.0002091,2]
[327962040,1716719444689,-1290.86601462,0.0002091,2]
[327962041,1716719444703,-438.92610371,0.0002091,2]
[327962042,1716719444715,-416.07389629,0.0002091,2]
[327962061,1716719446479,-682.69359414,0.00020904,2]
[327962063,1716719446491,-262.95673829,0.00020904,2]
[327962065,1716719446500,-956.79083112,0.00020904,2]
[327962066,1716719446510,-2521.40892281,0.0002091,2]
[327962067,1716719451477,3878.39118097,9.999e-05,2]
[327962068,1716719451502,15390.8720098,9.999e-05,2]
[327962069,1716719456338,225.06589874,9.999e-05,2]
[327962070,1716719458329,154.86062544,9.999e-05,2]
[327962071,1716719469481,3026.33889303,9.999e-05,2]
[327962072,1716719490923,492.27288917,0.0002091,7]
[327962073,1716719507131,286.04727348,0.00015,2]
[327962074,1716719525137,239.8838298,0.00015,2]
[327962086,1716720100115,1279.26662071,9.999e-05,2]
[327962091,1716720432108,-190.12040614,0.00017085,2]
[327962092,1716720432129,-1279.26662071,0.00017086,2]
[327962093,1716720432154,-6206.78330825,0.00017087,2]
[327962096,1716720573097,-1279.26662071,0.0001706,2]
[327962097,1716720573122,-3000.0,0.00017061,2]
[327962098,1716720573143,-381.6525692,0.00017061,2]
[327962099,1716720573164,-5508.31627211,0.00017087,2]
[327962122,1716720632791,-1279.26662071,0.00017086,2]
[327962123,1716720632801,-153.54443227,0.00017087,2]
[327962159,1716720638504,-344.88846712,0.00017087,2]
[327962242,1716720642168,-7355.43959495,0.00017087,2]
[327962243,1716720642178,-167.7635665,0.00017087,2]
[327962244,1716720642187,-227.09188286,0.0001736,2]
[327962245,1716720642197,-24506.5587012,0.00017361,2]
[327962246,1716720642207,-800.013584,0.00017786,2]
[327962247,1716720642216,-151.0,0.000184,3]
[327962248,1716720642225,-151.0,0.000184,2]
[327962249,1716720642234,-151.0,0.000184,3]
[327962250,1716720642244,-128.02343618,0.00018894,2]
[327962251,1716720642256,-22.97656382,0.00018894,2]
[327962252,1716720642267,-1722.78120072,0.000189,2]
[327962253,1716720642276,-163.345509,0.00019178,2]
[327962254,1716720642288,-151.0,0.00019387,2]
[327962255,1716720642298,-155.02910926,0.00019587,2]
[327962256,1716720642307,-230.98821188,0.00019587,2]
[327962257,1716720642317,-4732.02871458,0.00019587,2]
[327962258,1716720642326,-151.0,0.00019881,2]
[327962259,1716720642335,-279.1103904,0.0002,2]
[327962260,1716720642345,-181.11191058,0.0002,2]
[327962261,1716720642355,-414.72719987,0.0002,2]
[327962262,1716720642364,-4227.33365889,0.00020582,2]
[327962263,1716720642374,-497.0,0.00020751,2]
[327962264,1716720642383,-150.0,0.00020751,2]
[327962265,1716720642393,-150.241,0.00020751,2]
[327962266,1716720642403,-209.611,0.00020751,2]
[327962267,1716720642412,-7154.47337815,0.00020909,2]
[327962268,1716720642532,-274.71288917,0.00020909,2]
[327962269,1716720642543,-237.03081582,0.00020909,2]
[327962270,1716720642553,-692.61107751,0.0002091,2]
[327962271,1716720642563,-16575.25425671,0.0002091,2]
[327962272,1716720642572,-7383.67541828,0.00020911,2]
[327962273,1716720642582,-7026.20781819,0.00020911,2]
[327962274,1716720642591,-546.04246735,0.00020911,2]
[327962275,1716720642601,-500.0,0.00020911,2]
[327962276,1716720642610,-500.0,0.00020911,2]
[327962277,1716720642620,-500.0,0.00020911,2]
[327962278,1716720642629,-384.19844993,0.00020911,2]
[327962279,1716720642638,-500.0,0.00020911,2]
[327962280,1716720642648,-500.0,0.00020911,2]
[327962281,1716720642657,-649.32307287,0.00020911,2]
[327962282,1716720642666,-500.0,0.00020911,2]
[327962283,1716720642675,-500.0,0.00020911,2]
[327962284,1716720642685,-500.0,0.00020911,2]
[327962285,1716720642695,-500.0,0.00020911,2]
[327962286,1716720642704,-411.21501238,0.00020912,2]
[327962287,1716720642713,-178.99439023,0.00020912,2]
[327962288,1716720642723,-285.27144189,0.00020912,2]
[327962289,1716720642732,-179.41426756,0.00020912,2]
[327962290,1716720642741,-1513.84204452,0.00020912,2]
[327962291,1716720642751,-280.23589668,0.00020912,2]
[327962292,1716720642760,-22411.16019145,0.00020912,2]
[327962293,1716720642770,-896.50695997,0.00020912,2]
[327962294,1716720642779,-312.26152711,0.00020912,2]
[327962295,1716720642789,-270.18744518,0.00020912,2]
[327962296,1716720642799,-3066.2016721,0.00020912,2]
[327962297,1716720642808,-155.00435157,0.00020912,2]
[327962298,1716720642818,-12344.02599904,0.00020912,2]
[327962299,1716720642827,-164.28466186,0.00020913,2]
[327962300,1716720642837,-300.0,0.00020913,2]
[327962301,1716720642847,-158.67086264,0.00020913,2]
[327962302,1716720642856,-1541.82288315,0.00021,2]
[327962305,1716720643713,-3155.32586619,0.00021,2]
[327962307,1716720643723,-166.666666,0.00021918,2]
[327962309,1716720643732,-159.8994937,0.00022,2]
[327962310,1716720643742,-166.666666,0.00022431,2]
[327962311,1716720643751,-166.666666,0.00022944,2]
[327962312,1716720643760,-154.86062544,0.00023,2]
[327962313,1716720643770,-13336.55738391,0.00023,2]
[327962330,1716720648072,-6798.27299087,0.00023,2]
[327962331,1716720648152,-10739.18865034,0.00023,2]
[327962332,1716720648163,-166.666666,0.00023456,2]
[327962333,1716720648172,-470.1692862,0.00023591,2]
[327962334,1716720648182,-2000.0,0.0002363,2]
[327962335,1716720648191,-153.2533128,0.0002372,2]
[327962336,1716720648203,-5610.98246762,0.0002373,7]
[327962345,1716720829872,150.84915085,0.00024128,30]
[327962346,1716720829947,150.84915085,0.00023646,120]
[327962347,1716720858560,867.07352751,0.0001,2]
[327962355,1716721252634,150.8642222,0.00023979,30]
[327962356,1716721252718,150.8642222,0.00023499,120]
[327962358,1716721315784,1279.26662071,9.999e-05,2]
[327962363,1716721559508,150.84915085,0.00024238,30]
[327962364,1716721559596,150.84915085,0.00023754,120]
[327962367,1716721684866,-1279.26662071,0.00018702,2]
[327962368,1716721684889,-151.0,0.00018703,3]
[327962369,1716721684911,-151.0,0.00018703,2]
[327962370,1716721684932,-151.0,0.00018703,3]
[327962371,1716721684953,-520.18208,0.00019502,2]
[327962372,1716721684975,-279.1103904,0.0002,2]
[327962373,1716721684996,-181.11191058,0.0002,2]
[327962374,1716721685017,-414.72719987,0.0002,2]
[327962375,1716721685038,-306.84259384,0.00020702,2]
[327962376,1716721685060,-189.69416459,0.0002081,2]
[327962377,1716721685083,-189.69416458,0.00020813,2]
[327962378,1716721685106,-7050.02975207,0.0002089,2]
[327962379,1716721685128,-533.22,0.00020901,3]
[327962380,1716721685150,-283.1100642,0.00020908,2]
[327962381,1716721685172,-2801.75380745,0.0002091,2]
[327962382,1716721685194,-1582.0138323,0.0002091,2]
[327962383,1716721685218,-500.0,0.0002091,2]
[327962384,1716721685240,-268.37581354,0.0002091,2]
[327962385,1716721685264,-500.0,0.0002091,2]
[327962386,1716721685286,-444.59786417,0.0002091,2]
[327962387,1716721685307,-211.43035987,0.0002091,2]
[327962388,1716721685329,-500.0,0.0002091,2]
[327962389,1716721685351,-500.0,0.0002091,2]
[327962390,1716721685374,-152.13938183,0.0002091,2]
[327962456,1716721834590,-530.68111469,0.00019912,2]
[327962549,1716721839825,-332.60355028,0.00019912,2]
[327962651,1716721844074,-415.98195574,0.00019912,2]
[327962653,1716721844084,-260.09104,0.00019913,2]
[327962654,1716721844093,-181.11191058,0.0002,2]
[327962655,1716721844103,-279.1103904,0.0002,2]
[327962656,1716721844112,-414.72719987,0.00020909,2]
[327962657,1716721844121,-347.86061817,0.0002091,2]
[327962658,1716721844131,-500.0,0.0002091,2]
[327962659,1716721844140,-500.0,0.0002091,2]
[327962660,1716721844149,-500.0,0.0002091,2]
[327962661,1716721844159,-500.0,0.0002091,2]
[327962662,1716721844169,-500.0,0.0002091,2]
[327962663,1716721844178,-651.0641281,0.0002091,2]
[327962664,1716721844188,-500.0,0.0002091,2]
[327962665,1716721844197,-500.0,0.0002091,2]
[327962666,1716721844207,-500.0,0.0002091,2]
[327962667,1716721844217,-500.0,0.0002091,2]
[327962668,1716721844226,-618.55888782,0.0002091,2]
[327962669,1716721844236,-500.0,0.0002091,2]
[327962670,1716721844245,-500.0,0.0002091,2]
[327962671,1716721844255,-500.0,0.0002091,2]
[327962672,1716721844265,-311.47613759,0.0002091,2]
[327962673,1716721844274,-500.0,0.0002091,2]
[327962674,1716721844283,-500.0,0.0002091,2]
[327962675,1716721844292,-500.0,0.0002091,2]
[327962676,1716721844302,-500.0,0.0002091,2]
[327962677,1716721844311,-500.0,0.0002091,2]
[327962678,1716721844320,-500.0,0.0002091,2]
[327962679,1716721844329,-500.0,0.0002091,2]
[327962680,1716721844339,-500.0,0.0002091,2]
[327962681,1716721844350,-500.0,0.0002091,2]
[327962682,1716721844359,-500.0,0.0002091,2]
[327962683,1716721844369,-500.0,0.0002091,2]
[327962684,1716721844379,-500.0,0.0002091,2]
[327962685,1716721844388,-500.0,0.0002091,2]
[327962686,1716721844396,-500.0,0.0002091,2]
[327962687,1716721844406,-302.50376054,0.0002091,2]
[327962688,1716721844415,-500.0,0.0002091,2]
[327962689,1716721844426,-358.12974128,0.0002091,2]
[327962690,1716721844435,-500.0,0.0002091,2]
[327962691,1716721844445,-500.0,0.0002091,2]
[327962692,1716721844454,-500.0,0.0002091,2]
[327962693,1716721844463,-600.0,0.0002091,2]
[327962694,1716721844473,-500.0,0.0002091,2]
[327962695,1716721844483,-500.0,0.0002091,2]
[327962696,1716721844492,-500.0,0.0002091,2]
[327962699,1716721844503,-500.0,0.0002091,2]
[327962701,1716721844514,-500.0,0.0002091,2]
[327962703,1716721844525,-500.0,0.0002091,2]
[327962704,1716721844535,-500.0,0.0002091,2]
[327962706,1716721844546,-500.0,0.0002091,2]
[327962708,1716721844557,-343.93018309,0.0002091,2]
[327962710,1716721844567,-154.86062544,0.0002091,2]
[327962713,1716721844576,-12344.02599904,0.0002091,2]
[327962715,1716721844586,-154.86062544,0.0002091,2]
[327962717,1716721844596,-162.68825562,0.00020911,2]
[327962719,1716721844609,-42009.85148102,0.00020911,2]
[327962721,1716721844618,-448.05244228,0.00020911,2]
[327962723,1716721844628,-10462.98123862,0.00020911,2]
[327962726,1716721844640,-270.06099238,0.00020911,2]
[327962728,1716721844650,-26663.02735702,0.00020911,2]
[327962730,1716721844660,-516.25402816,0.00020911,2]
[327962732,1716721844671,-155.70818563,0.00020911,2]
[327962735,1716721844681,-155.33293194,0.00020911,2]
[327962737,1716721844691,-216.27108842,0.00020911,2]
[327962739,1716721844701,-431.50458725,0.00020911,2]
[327962741,1716721844712,-1802.3459589,0.00020912,2]
[327962743,1716721844721,-43632.30217357,0.00020913,2]
[327962745,1716721844733,-151.0,0.00020913,2]
[327962747,1716721844743,-151.0,0.00020913,2]
[327962749,1716721844753,-151.0,0.00020913,2]
[327962751,1716721844763,-506.748606,0.00020913,2]
[327962753,1716721844773,-506.748606,0.00020913,2]
[327962755,1716721844783,-151.0,0.00020913,2]
[327962757,1716721844793,-151.0,0.00020913,2]
[327962759,1716721844803,-262.966117,0.00020913,2]
[327962761,1716721844813,-262.966117,0.00020913,2]
[327962763,1716721844822,-151.0,0.00020913,2]
[327962765,1716721844832,-151.0,0.00020913,2]
[327962767,1716721844841,-538.251931,0.00020913,2]
[327962769,1716721844851,-538.251931,0.00020913,2]
[327962771,1716721844860,-151.0,0.00020913,2]
[327962773,1716721844870,-430.187874,0.00020913,2]
[327962775,1716721844879,-430.187874,0.00020913,2]
[327962777,1716721844889,-4697.14874934,0.00021,2]
[327962779,1716721844899,-156.866,0.00021032,2]
[327962781,1716721844908,-499.112,0.00021032,2]
[327962783,1716721844919,-152.695,0.00021032,2]
[327962785,1716721844930,-1148.52080048,0.00021879,2]
[327962787,1716721844940,-151.0,0.00021918,2]
[327962789,1716721844950,-166.666666,0.00021918,2]
[327962791,1716721844960,-159.8994937,0.00022,2]
[327962793,1716721844969,-252.0,0.00022,2]
[327962795,1716721844978,-252.0,0.00022192,2]
[327962797,1716721844988,-166.666666,0.00022431,2]
[327962799,1716721844998,-1617.148133,0.000227,2]
[327962801,1716721845008,-600.0,0.00022877,2]
[327962803,1716721845017,-424.36500736,0.000229,2]
[327962805,1716721845027,-166.666666,0.00022944,2]
[327962806,1716721845036,-154.86062544,0.00023,2]
[327962808,1716721845047,-252.0,0.00023014,2]
[327962809,1716721845056,-607.46397108,0.00023115,2]
[327962810,1716721845066,-1000.0,0.000232,2]
[327962811,1716721845076,-4225.76789331,0.00023295,2]
[327962812,1716721845085,-151.0,0.00023295,2]
[327962813,1716721845095,-158.89909,0.00023295,2]
[327962814,1716721845105,-151.0,0.00023295,2]
[327962815,1716721845115,-166.666666,0.00023456,2]
[327962816,1716721845125,-151.0,0.00023499,2]
[327962817,1716721845135,-389.362803,0.00023499,2]
[327962818,1716721845146,-389.362803,0.00023499,2]
[327962819,1716721845155,-158.393692,0.00023499,2]
[327962820,1716721845165,-151.0,0.00023499,2]
[327962821,1716721845175,-151.0,0.00023499,2]
[327962822,1716721845185,-151.0,0.00023499,2]
[327962823,1716721845194,-151.0,0.00023499,2]
[327962824,1716721845203,-538.722581,0.00023499,2]
[327962825,1716721845213,-907.046083,0.00023499,2]
[327962826,1716721845222,-538.722581,0.00023499,2]
[327962827,1716721845233,-151.0,0.00023499,2]
[327962828,1716721845243,-151.0,0.00023499,2]
[327962829,1716721845253,-151.0,0.00023499,2]
[327962830,1716721845263,-653.413635,0.00023499,2]
[327962831,1716721845272,-262.966117,0.00023499,2]
[327962832,1716721845281,-653.413635,0.00023499,2]
[327962833,1716721845291,-151.0,0.00023499,2]
[327962834,1716721845301,-151.0,0.00023499,2]
[327962835,1716721845311,-262.966117,0.00023499,2]
[327962836,1716721845320,-151.0,0.00023499,2]
[327962837,1716721845330,-538.251931,0.00023499,2]
[327962838,1716721845340,-538.251931,0.00023499,2]
[327962839,1716721845350,-151.0,0.00023499,2]
[327962840,1716721845360,-204.672948,0.00023499,2]
[327962841,1716721845369,-430.187874,0.00023499,2]
[327962842,1716721845379,-204.672948,0.00023499,2]
[327962843,1716721845389,-430.187874,0.00023499,2]
[327962844,1716721845398,-151.0,0.00023499,2]
[327962845,1716721845408,-151.0,0.00023499,2]
[327962846,1716721845417,-151.0,0.00023499,2]
[327962847,1716721845427,-151.0,0.00023499,2]
[327962848,1716721845436,-151.0,0.00023499,2]
[327962849,1716721845549,-514.709632,0.00023499,2]
[327962850,1716721845559,-231.128144,0.00023499,2]
[327962851,1716721845568,-514.709632,0.00023499,2]
[327962852,1716721845577,-231.128144,0.00023499,2]
[327962853,1716721845587,-246.13644458,0.0002355,7]
[327962854,1716721845596,-5943.13627181,0.0002355,7]
[327962855,1716721845610,-603.48139773,0.00023591,2]
[327962856,1716721845619,-2000.0,0.00023628,2]
[327962857,1716721845628,-151.0,0.00023646,2]
[327962858,1716721845637,-152.226573,0.00023646,2]
[327962859,1716721845647,-151.0,0.00023646,2]
[327962860,1716721845656,-151.0,0.00023646,2]
[327962861,1716721845666,-151.0,0.00023646,2]
[327962862,1716721845674,-151.0,0.00023646,2]
[327962863,1716721845684,-506.748606,0.00023646,2]
[327962864,1716721845693,-506.748606,0.00023646,2]
[327962865,1716721845702,-151.0,0.00023646,2]